fUSD/lending_fUSD_20240625
["ID","MTS","AMOUNT","RATE_DAILY","PERIOD"]
[330409036,1719352257863,-500.0,0.00019725,2]
[330409037,1719352257873,-7781.82,0.00019725,2]
[330409038,1719352257882,-3628.98,0.00019725,2]
[330409039,1719352257891,-983.02,0.00019725,2]
[330409040,1719352257901,-2876.46,0.00019726,2]
[330409041,1719352257912,-1162.14856408,0.00019726,2]
[330409042,1719352711852,167.6,0.00014773,2]
[330409043,1719352932910,169.71,0.00014625,2]
[330409054,1719353431790,-381.69396082,0.00016449,2]
[330409055,1719353432100,-236.88603918,0.00016449,2]
[330409057,1719353432110,-155.0,0.00017259,2]
[330409059,1719353432121,-307.97977309,0.00017297,2]
[330409061,1719353432131,-159.99615125,0.00017533,2]
[330409062,1719353432141,-211.46233985,0.00017727,2]
[330409063,1719353432153,-318.26655153,0.00017727,2]
[330409064,1719353432163,-511.32405084,0.00017727,2]
[330409067,1719353437912,-64.68575186,0.00017727,2]
[330409068,1719353437923,-269.12096876,0.00018,2]
[330409069,1719353437935,-442.15696364,0.00018,2]
[330409070,1719353437944,-250.0,0.00018294,2]
[330409071,1719353437954,-250.0,0.00018341,2]
[330409072,1719353437964,-156.3138,0.00018363,2]
[330409073,1719353437974,-1000.0,0.00018463,2]
[330409074,1719353437984,-300.0,0.00018712,2]
[330409075,1719353437993,-618.58,0.00018713,2]
[330409076,1719353438002,-720.52768086,0.00018859,2]
[330409077,1719353438012,-155.0,0.00018877,2]
[330409078,1719353438021,-299.99,0.00018978,4]
[330409079,1719353438031,-172.81449373,0.00018978,2]
[330409080,1719353438041,-500.0,0.00018978,2]
[330409081,1719353438051,-4685.99412997,0.00018978,2]
[330409082,1719353438062,-29212.98052615,0.00018978,2]
[330409083,1719353438074,-2260.08741532,0.00018978,2]
[330409084,1719353438099,-7930.2127496,0.00018978,2]
[330409085,1719353438111,-49883.88627896,0.00018978,2]
[330409086,1719353438120,-20628.66660592,0.00018978,2]
[330409087,1719353438131,-55229.85950184,0.00018978,2]
[330409088,1719353438142,-529.12011047,0.00018978,2]
[330409089,1719353438153,-2734.25669572,0.00018978,2]
[330409090,1719353438165,-12338.90693721,0.00018978,2]
[330409091,1719353438193,-457.72973876,0.00018978,2]
[330409092,1719353438204,-907.87201028,0.00018978,2]
[330409093,1719353439941,-155.0,0.00018859,2]
[330409094,1719353439951,-468.99526402,0.00018978,2]
[330409095,1719353439963,-763.48000001,0.00018978,2]
[330409096,1719353440080,-108646.65363577,0.00018978,2]
[330409097,1719353440090,-708.0,0.00019,2]
[330409098,1719353440100,-166.82495573,0.00019078,2]
[330409099,1719353440109,-181.04155218,0.00019078,2]
[330409100,1719353440119,-10000.0,0.00019078,2]
[330409101,1719353440128,-172.90434161,0.00019168,2]
[330409102,1719353440137,-657.84738546,0.00019169,2]
[330409103,1719353440147,-235.14915832,0.00019169,2]
[330409104,1719353440157,-264.3264858,0.00019177,2]
[330409105,1719353440167,-264.3264858,0.00019177,2]
[330409106,1719353440176,-3049.73,0.00019178,2]
[330409107,1719353440186,-1326.61,0.00019178,2]
[330409108,1719353440196,-2150.13,0.00019178,2]
[330409109,1719353440205,-831.49,0.00019178,2]
[330409110,1719353440214,-500.0,0.00019178,2]
[330409111,1719353440226,-7133.34,0.00019178,2]
[330409112,1719353440237,-500.0,0.00019178,2]
[330409113,1719353440249,-500.0,0.00019178,2]
[330409114,1719353440259,-500.0,0.00019178,2]
[330409115,1719353440268,-500.0,0.00019178,2]
[330409116,1719353440279,-500.0,0.00019178,2]
[330409117,1719353440289,-500.0,0.00019178,2]
[330409118,1719353440298,-500.0,0.00019178,2]
[330409119,1719353440307,-500.0,0.00019178,2]
[330409120,1719353440317,-500.0,0.00019178,2]
[330409121,1719353440328,-500.0,0.00019178,2]
[330409122,1719353440338,-3326.56,0.00019178,2]
[330409123,1719353440347,-475.13288842,0.00019178,2]
[330409124,1719353440356,-500.0,0.00019178,2]
[330409125,1719353440364,-500.0,0.00019178,2]
[330409126,1719353440374,-500.0,0.00019178,2]
[330409127,1719353440383,-500.0,0.00019178,2]
[330409128,1719353440392,-500.0,0.00019178,2]
[330409129,1719353440400,-500.9,0.00019178,2]
[330409130,1719353440410,-500.0,0.00019178,2]
[330409131,1719353440419,-500.0,0.00019178,2]
[330409132,1719353440428,-500.0,0.00019178,2]
[330409133,1719353440437,-500.0,0.00019178,2]
[330409134,1719353440446,-500.0,0.00019178,2]
[330409135,1719353440455,-500.0,0.00019178,2]
[330409136,1719353440464,-500.0,0.00019178,2]
[330409137,1719353440475,-500.0,0.00019178,2]
[330409138,1719353440484,-500.0,0.00019178,2]
[330409139,1719353440494,-500.0,0.00019178,2]
[330409140,1719353440503,-500.0,0.00019178,2]
[330409141,1719353440513,-375.60129125,0.00019178,2]
[330409142,1719353440522,-901.1,0.00019178,2]
[330409143,1719353440532,-500.0,0.00019178,2]
[330409144,1719353440542,-593.46,0.00019178,2]
[330409145,1719353440551,-500.0,0.00019178,2]
[330409146,1719353440561,-353.44949284,0.00019178,2]
[330409148,1719353440570,-500.0,0.00019178,2]
[330409150,1719353440580,-601.28419559,0.00019178,2]
[330409152,1719353440589,-500.0,0.00019178,2]
[330409153,1719353440599,-500.0,0.00019178,2]
[330409154,1719353440608,-500.0,0.00019178,2]
[330409155,1719353440617,-500.0,0.00019178,2]
[330409156,1719353440626,-502.50853197,0.00019178,2]
[330409157,1719353440636,-500.0,0.00019178,2]
[330409158,1719353440646,-500.0,0.00019178,2]
[330409159,1719353440655,-500.0,0.00019178,2]
[330409160,1719353440664,-500.0,0.00019178,2]
[330409161,1719353440673,-500.0,0.00019178,2]
[330409162,1719353440683,-597.96,0.00019178,2]
[330409163,1719353440692,-500.0,0.00019178,2]
[330409164,1719353440702,-500.0,0.00019178,2]
[330409165,1719353440711,-500.0,0.00019178,2]
[330409166,1719353440721,-2164.47,0.00019178,2]
[330409167,1719353440732,-500.0,0.00019178,2]
[330409168,1719353440741,-500.0,0.00019178,2]
[330409169,1719353440751,-658.64,0.00019178,2]
[330409170,1719353440760,-500.0,0.00019178,2]
[330409171,1719353440769,-1211.81,0.00019178,2]
[330409172,1719353440778,-500.0,0.00019178,2]
[330409173,1719353440789,-500.0,0.00019178,2]
[330409174,1719353440798,-500.0,0.00019178,2]
[330409175,1719353440807,-503.54579792,0.00019178,2]
[330409176,1719353440817,-399.3911066,0.00019178,2]
[330409177,1719353440826,-500.0,0.00019178,2]
[330409178,1719353440836,-502.29,0.00019178,2]
[330409179,1719353440845,-500.0,0.00019178,2]
[330409180,1719353440855,-500.0,0.00019178,2]
[330409181,1719353440865,-500.0,0.00019178,2]
[330409182,1719353440875,-500.0,0.00019178,2]
[330409183,1719353440885,-500.0,0.00019178,2]
[330409184,1719353440894,-500.0,0.00019178,2]
[330409185,1719353440903,-500.0,0.00019178,2]
[330409186,1719353440912,-1548.75,0.00019178,2]
[330409187,1719353440922,-500.0,0.00019178,2]
[330409188,1719353440931,-1965.0,0.00019178,2]
[330409189,1719353440940,-500.0,0.00019178,2]
[330409190,1719353440950,-678.75,0.00019178,2]
[330409191,1719353440959,-500.0,0.00019178,2]
[330409192,1719353440968,-500.0,0.00019178,2]
[330409193,1719353440977,-159.00646294,0.00019178,2]
[330409194,1719353440987,-726.6,0.00019178,2]
[330409195,1719353440997,-453.57938823,0.00019178,2]
[330409196,1719353441006,-1087.36,0.00019178,2]
[330409197,1719353441015,-593.01,0.00019178,2]
[330409198,1719353441026,-500.0,0.00019178,2]
[330409199,1719353441035,-500.0,0.00019178,2]
[330409200,1719353441044,-580.84,0.00019178,2]
[330409201,1719353441054,-1202.08,0.00019178,2]
[330409202,1719353441063,-500.0,0.00019178,2]
[330409203,1719353441072,-500.0,0.00019178,2]
[330409204,1719353441081,-796.35,0.00019178,2]
[330409205,1719353441092,-500.0,0.00019178,2]
[330409206,1719353441101,-500.0,0.00019178,2]
[330409207,1719353441110,-500.0,0.00019178,2]
[330409208,1719353441120,-500.0,0.00019178,2]
[330409209,1719353441129,-1101.42,0.00019178,2]
[330409210,1719353441138,-500.0,0.00019178,2]
[330409211,1719353441148,-500.0,0.00019178,2]
[330409212,1719353441157,-691.57,0.00019178,2]
[330409213,1719353441166,-500.0,0.00019178,2]
[330409214,1719353441175,-500.0,0.00019178,2]
[330409215,1719353441184,-563.78,0.00019178,2]
[330409216,1719353441193,-2404.73,0.00019178,2]
[330409217,1719353441202,-1300.67,0.00019178,2]
[330409218,1719353441211,-610.71,0.00019178,2]
[330409219,1719353441221,-500.0,0.00019178,2]
[330409220,1719353441230,-4740.26,0.00019178,2]
[330409221,1719353441242,-500.0,0.00019178,2]
[330409222,1719353441251,-750.8,0.00019178,2]
[330409223,1719353441260,-500.0,0.00019178,2]
[330409224,1719353441269,-500.0,0.00019178,2]
[330409225,1719353441279,-1043.3,0.00019178,2]
[330409226,1719353441288,-500.0,0.00019178,2]
[330409227,1719353441298,-500.0,0.00019178,2]
[330409228,1719353441308,-863.15,0.00019178,2]
[330409229,1719353441318,-500.0,0.00019178,2]
[330409230,1719353441328,-500.0,0.00019178,2]
[330409231,1719353441339,-500.0,0.00019178,2]
[330409232,1719353441348,-688.8,0.00019178,2]
[330409233,1719353441358,-500.0,0.00019178,2]
[330409234,1719353441367,-500.0,0.00019178,2]
[330409235,1719353441376,-500.0,0.00019178,2]
[330409236,1719353441385,-500.0,0.00019178,2]
[330409237,1719353441396,-500.0,0.00019178,2]
[330409238,1719353441406,-500.0,0.00019178,2]
[330409239,1719353441417,-500.0,0.00019178,2]
[330409240,1719353441426,-1766.19,0.00019178,2]
[330409241,1719353441435,-500.0,0.00019178,2]
[330409242,1719353441444,-500.0,0.00019178,2]
[330409243,1719353441454,-642.83,0.00019178,2]
[330409244,1719353441463,-2281.67,0.00019178,2]
[330409245,1719353441473,-774.03,0.00019178,2]
[330409246,1719353441482,-511.15,0.00019178,2]
[330409247,1719353441491,-598.3,0.00019178,2]
[330409248,1719353441500,-500.0,0.00019178,2]
[330409249,1719353441510,-1074.21,0.00019178,2]
[330409250,1719353441519,-660.38,0.00019178,2]
[330409251,1719353441529,-1659.78,0.00019178,2]
[330409252,1719353441538,-500.0,0.00019178,2]
[330409253,1719353441547,-1435.94,0.00019178,2]
[330409254,1719353441558,-500.0,0.00019178,2]
[330409255,1719353441567,-500.0,0.00019178,2]
[330409256,1719353441577,-1151.84,0.00019178,2]
[330409257,1719353441586,-463.42521974,0.00019178,2]
[330409258,1719353441595,-500.0,0.00019178,2]
[330409259,1719353441604,-732.51,0.00019178,2]
[330409260,1719353441614,-500.0,0.00019178,2]
[330409261,1719353441622,-500.0,0.00019178,2]
[330409262,1719353441632,-1026.26,0.00019178,2]
[330409263,1719353441641,-1044.11,0.00019178,2]
[330409264,1719353441650,-500.0,0.00019178,2]
[330409265,1719353441659,-3326.37,0.00019178,2]
[330409266,1719353441669,-500.0,0.00019178,2]
[330409267,1719353441679,-851.17,0.00019178,2]
[330409268,1719353441688,-500.0,0.00019178,2]
[330409269,1719353441698,-500.0,0.00019178,2]
[330409270,1719353441707,-500.0,0.00019178,2]
[330409271,1719353441717,-781.68,0.00019178,2]
[330409272,1719353441726,-819.68,0.00019178,2]
[330409273,1719353441736,-500.0,0.00019178,2]
[330409274,1719353441745,-654.83,0.00019178,2]
[330409275,1719353441755,-1080.79,0.00019178,2]
[330409276,1719353441764,-560.46,0.00019178,2]
[330409277,1719353441773,-500.0,0.00019178,2]
[330409278,1719353441783,-500.0,0.00019178,2]
[330409279,1719353441792,-500.0,0.00019178,2]
[330409280,1719353441801,-781.5,0.00019178,2]
[330409281,1719353441810,-500.0,0.00019178,2]
[330409282,1719353441819,-500.0,0.00019178,2]
[330409283,1719353441828,-500.0,0.00019178,2]
[330409284,1719353441838,-1131.78,0.00019178,2]
[330409285,1719353441847,-500.0,0.00019178,2]
[330409286,1719353441856,-500.0,0.00019178,2]
[330409287,1719353441865,-500.0,0.00019178,2]
[330409288,1719353441874,-572.46,0.00019178,2]
[330409289,1719353441883,-568.98,0.00019178,2]
[330409290,1719353441892,-503.19,0.00019178,2]
[330409291,1719353441901,-1051.21,0.00019178,2]
[330409292,1719353441910,-500.0,0.00019178,2]
[330409293,1719353441919,-10532.4,0.00019178,2]
[330409294,1719353441928,-3268.02,0.00019178,2]
[330409295,1719353441937,-500.0,0.00019178,2]
[330409296,1719353441945,-500.0,0.00019178,2]
[330409297,1719353441957,-500.0,0.00019178,2]
[330409298,1719353441967,-1824.51,0.00019178,2]
[330409299,1719353441977,-608.69,0.00019178,2]
[330409300,1719353441987,-500.0,0.00019178,2]
[330409301,1719353441996,-500.0,0.00019178,2]
[330409302,1719353442006,-500.0,0.00019178,2]
[330409303,1719353442015,-1257.0,0.00019178,2]
[330409304,1719353442025,-540.28,0.00019178,2]
[330409305,1719353442034,-500.0,0.00019178,2]
[330409306,1719353442043,-500.0,0.00019178,2]
[330409307,1719353442054,-500.0,0.00019178,2]
[330409308,1719353442065,-500.0,0.00019178,2]
[330409309,1719353442075,-500.0,0.00019178,2]
[330409310,1719353442083,-500.0,0.00019178,2]
[330409311,1719353442095,-742.98,0.00019178,2]
[330409312,1719353442104,-500.0,0.00019178,2]
[330409313,1719353442114,-500.0,0.00019178,2]
[330409314,1719353442125,-500.0,0.00019178,2]
[330409315,1719353442134,-500.0,0.00019178,2]
[330409316,1719353442143,-500.0,0.00019178,2]
[330409317,1719353442152,-6322.88,0.00019178,2]
[330409318,1719353442162,-500.0,0.00019178,2]
[330409319,1719353442171,-1091.88,0.00019178,2]
[330409320,1719353442180,-588.8,0.00019178,2]
[330409321,1719353442188,-500.0,0.00019178,2]
[330409322,1719353442198,-501.8,0.00019178,2]
[330409323,1719353442208,-647.69220048,0.00019178,2]
[330409324,1719353442219,-500.0,0.00019178,2]
[330409325,1719353442231,-500.0,0.00019178,2]
[330409326,1719353442245,-815.35,0.00019178,2]
[330409327,1719353442254,-500.0,0.00019178,2]
[330409328,1719353442264,-500.0,0.00019178,2]
[330409329,1719353442273,-882.94,0.00019178,2]
[330409330,1719353442283,-263.25351708,0.00019178,2]
[330409331,1719353442292,-500.0,0.00019178,2]
[330409332,1719353442302,-500.0,0.00019178,2]
[330409333,1719353442311,-500.0,0.00019178,2]
[330409334,1719353442325,-1325.52,0.00019178,2]
[330409335,1719353442335,-500.51,0.00019178,2]
[330409336,1719353442344,-1142.82,0.00019178,2]
[330409337,1719353442354,-828.99,0.00019178,2]
[330409338,1719353442364,-500.0,0.00019178,2]
[330409339,1719353442373,-500.0,0.00019178,2]
[330409340,1719353442382,-500.0,0.00019178,2]
[330409341,1719353442391,-630.0,0.00019178,2]
[330409342,1719353442400,-500.0,0.00019178,2]
[330409343,1719353442410,-1016.55,0.00019178,2]
[330409344,1719353442419,-551.57,0.00019178,2]
[330409345,1719353442429,-500.0,0.00019178,2]
[330409346,1719353442438,-796.94,0.00019178,2]
[330409347,1719353442447,-567.94049501,0.00019178,2]
[330409348,1719353442456,-500.0,0.00019178,2]
[330409349,1719353442465,-1130.97,0.00019178,2]
[330409350,1719353442475,-500.0,0.00019178,2]
[330409351,1719353442485,-500.0,0.00019178,2]
[330409352,1719353442495,-1447.63,0.00019178,2]
[330409353,1719353442504,-845.91,0.00019178,2]
[330409354,1719353442514,-500.0,0.00019178,2]
[330409355,1719353442523,-919.79,0.00019178,2]
[330409356,1719353442533,-500.0,0.00019178,2]
[330409357,1719353442542,-800.3,0.00019178,2]
[330409358,1719353442552,-500.0,0.00019178,2]
[330409359,1719353442562,-500.0,0.00019178,2]
[330409360,1719353442570,-500.0,0.00019178,2]
[330409361,1719353442579,-382.39066465,0.00019178,2]
[330409363,1719353442589,-820.16,0.00019178,2]
[330409364,1719353442598,-514.96,0.00019178,2]
[330409366,1719353442607,-1233.48,0.00019178,2]
[330409368,1719353442616,-500.0,0.00019178,2]
[330409370,1719353442626,-500.0,0.00019178,2]
[330409372,1719353442636,-500.0,0.00019178,2]
[330409374,1719353442645,-500.0,0.00019178,2]
[330409376,1719353442655,-500.0,0.00019178,2]
[330409378,1719353442664,-500.0,0.00019178,2]
[330409380,1719353442673,-500.0,0.00019178,2]
[330409382,1719353442683,-500.0,0.00019178,2]
[330409384,1719353442692,-500.0,0.00019178,2]
[330409386,1719353442702,-617.27,0.00019178,2]
[330409389,1719353442711,-781.29,0.00019178,2]
[330409392,1719353442722,-1164.38,0.00019178,2]
[330409394,1719353442731,-162.03364786,0.00019178,2]
[330409397,1719353442741,-526.88,0.00019178,2]
[330409398,1719353442751,-500.0,0.00019178,2]
[330409401,1719353442762,-500.0,0.00019178,2]
[330409403,1719353442772,-500.0,0.00019178,2]
[330409405,1719353442781,-500.0,0.00019178,2]
[330409406,1719353442790,-500.0,0.00019178,2]
[330409407,1719353442800,-500.0,0.00019178,2]
[330409408,1719353442809,-500.0,0.00019178,2]
[330409409,1719353442818,-535.7,0.00019178,2]
[330409410,1719353442827,-608.68,0.00019178,2]
[330409411,1719353442837,-500.0,0.00019178,2]
[330409412,1719353442847,-500.0,0.00019178,2]
[330409413,1719353442855,-847.23,0.00019178,2]
[330409414,1719353442865,-551.76,0.00019178,2]
[330409415,1719353442874,-500.0,0.00019178,2]
[330409416,1719353442883,-500.0,0.00019178,2]
[330409417,1719353442892,-1705.97,0.00019178,2]
[330409418,1719353442902,-500.0,0.00019178,2]
[330409419,1719353442914,-717.36,0.00019178,2]
[330409420,1719353442923,-1204.59,0.00019178,2]
[330409421,1719353442935,-500.0,0.00019178,2]
[330409422,1719353442944,-500.0,0.00019178,2]
[330409423,1719353442955,-500.0,0.00019178,2]
[330409424,1719353442965,-763.59,0.00019178,2]
[330409425,1719353442975,-849.4,0.00019178,2]
[330409426,1719353442985,-516.44182618,0.00019178,2]
[330409427,1719353442995,-553.38,0.00019178,2]
[330409428,1719353443004,-500.0,0.00019178,2]
[330409429,1719353443012,-652.01,0.00019178,2]
[330409430,1719353443022,-1073.18,0.00019178,2]
[330409431,1719353443031,-1475.72,0.00019178,2]
[330409432,1719353443042,-500.0,0.00019178,2]
[330409433,1719353443051,-593.46,0.00019178,2]
[330409434,1719353443061,-500.0,0.00019178,2]
[330409435,1719353443071,-500.0,0.00019178,2]
[330409436,1719353443081,-500.0,0.00019178,2]
[330409437,1719353443090,-500.0,0.00019178,2]
[330409438,1719353443100,-1894.37,0.00019178,2]
[330409439,1719353443109,-589.59,0.00019178,2]
[330409440,1719353443118,-500.0,0.00019178,2]
[330409441,1719353443127,-500.0,0.00019178,2]
[330409442,1719353443136,-500.0,0.00019178,2]
[330409443,1719353443146,-500.0,0.00019178,2]
[330409444,1719353443155,-699.58,0.00019178,2]
[330409445,1719353443164,-500.0,0.00019178,2]
[330409446,1719353443174,-539.13,0.00019178,2]
[330409447,1719353443183,-639.85,0.00019178,2]
[330409448,1719353443192,-500.0,0.00019178,2]
[330409449,1719353443201,-841.0,0.00019178,2]
[330409450,1719353443211,-1373.12,0.00019178,2]
[330409451,1719353443220,-500.0,0.00019178,2]
[330409452,1719353443229,-549.9,0.00019178,2]
[330409453,1719353443244,-500.0,0.00019178,2]
[330409454,1719353443253,-802.37,0.00019178,2]
[330409455,1719353443262,-500.0,0.00019178,2]
[330409456,1719353443271,-719.65,0.00019178,2]
[330409466,1719353443427,-901.94,0.00019178,2]
[330409469,1719353443447,-500.0,0.00019178,2]
[330409471,1719353443456,-500.0,0.00019178,2]
[330409473,1719353443466,-500.0,0.00019178,2]
[330409474,1719353443476,-1427.26,0.00019178,2]
[330409475,1719353443486,-500.0,0.00019178,2]
[330409476,1719353443495,-500.0,0.00019178,2]
[330409477,1719353443504,-500.0,0.00019178,2]
[330409478,1719353443513,-500.0,0.00019178,2]
[330409479,1719353443524,-500.0,0.00019178,2]
[330409480,1719353443534,-500.0,0.00019178,2]
[330409482,1719353443543,-500.0,0.00019178,2]
[330409483,1719353443552,-500.0,0.00019178,2]
[330409485,1719353443562,-500.0,0.00019178,2]
[330409487,1719353443572,-500.0,0.00019178,2]
[330409490,1719353443582,-500.0,0.00019178,2]
[330409492,1719353443591,-404.26193562,0.00019178,2]
[330409495,1719353443600,-522.59,0.00019178,2]
[330409497,1719353443610,-500.0,0.00019178,2]
[330409499,1719353443620,-2118.73,0.00019178,2]
[330409501,1719353443629,-713.79,0.00019178,2]
[330409502,1719353443639,-968.65,0.00019178,2]
[330409504,1719353443649,-500.0,0.00019178,2]
[330409506,1719353443660,-1858.43,0.00019178,2]
[330409507,1719353443669,-722.57,0.00019178,2]
[330409508,1719353443679,-500.0,0.00019178,2]
[330409509,1719353443688,-500.0,0.00019178,2]
[330409510,1719353443698,-500.0,0.00019178,2]
[330409511,1719353443707,-500.0,0.00019178,2]
[330409512,1719353443719,-1426.9,0.00019178,2]
[330409513,1719353443729,-1196.55,0.00019178,2]
[330409514,1719353443739,-500.0,0.00019178,2]
[330409515,1719353443750,-500.0,0.00019178,2]
[330409516,1719353443759,-500.0,0.00019178,2]
[330409517,1719353443768,-500.0,0.00019178,2]
[330409518,1719353443780,-652.13,0.00019178,2]
[330409519,1719353443790,-500.0,0.00019178,2]
[330409520,1719353443800,-500.0,0.00019178,2]
[330409521,1719353443809,-500.0,0.00019178,2]
[330409522,1719353443819,-500.0,0.00019178,2]
[330409523,1719353443828,-500.0,0.00019178,2]
[330409524,1719353443837,-1074.95,0.00019178,2]
[330409525,1719353443847,-500.0,0.00019178,2]
[330409526,1719353443856,-500.0,0.00019178,2]
[330409527,1719353443865,-500.0,0.00019178,2]
[330409528,1719353443874,-500.0,0.00019178,2]
[330409529,1719353443883,-500.0,0.00019178,2]
[330409530,1719353443893,-2124.76,0.00019178,2]
[330409531,1719353443902,-500.0,0.00019178,2]
[330409532,1719353443912,-545.05434758,0.00019178,2]
[330409533,1719353443921,-500.0,0.00019178,2]
[330409534,1719353443931,-500.0,0.00019178,2]
[330409535,1719353443942,-500.0,0.00019178,2]
[330409536,1719353443953,-735.72,0.00019178,2]
[330409537,1719353443963,-1178.16,0.00019178,2]
[330409538,1719353443973,-1380.29,0.00019178,2]
[330409539,1719353443982,-500.0,0.00019178,2]
[330409540,1719353443991,-603.16,0.00019178,2]
[330409541,1719353444001,-500.0,0.00019178,2]
[330409542,1719353444010,-836.51,0.00019178,2]
[330409543,1719353444019,-861.21,0.00019178,2]
[330409544,1719353444028,-500.0,0.00019178,2]
[330409545,1719353444038,-500.0,0.00019178,2]
[330409546,1719353444049,-1314.64,0.00019178,2]
[330409547,1719353444059,-577.41,0.00019178,2]
[330409548,1719353444068,-1400.58,0.00019178,2]
[330409549,1719353444078,-500.0,0.00019178,2]
[330409550,1719353444088,-828.52,0.00019178,2]
[330409551,1719353444100,-500.0,0.00019178,2]
[330409552,1719353444111,-2291.94,0.00019178,2]
[330409553,1719353444121,-500.0,0.00019178,2]
[330409554,1719353444131,-500.0,0.00019178,2]
[330409555,1719353444142,-676.81,0.00019178,2]
[330409556,1719353444152,-503.84,0.00019178,2]
[330409557,1719353444162,-500.0,0.00019178,2]
[330409558,1719353444172,-1025.84,0.00019178,2]
[330409559,1719353444182,-625.48,0.00019178,2]
[330409560,1719353444192,-500.0,0.00019178,2]
[330409561,1719353444203,-239.72807345,0.00019178,2]
[330409562,1719353444212,-500.0,0.00019178,2]
[330409563,1719353444223,-1613.13,0.00019178,2]
[330409564,1719353444232,-500.0,0.00019178,2]
[330409565,1719353444246,-500.0,0.00019178,2]
[330409566,1719353444256,-500.0,0.00019178,2]
[330409567,1719353444265,-939.73,0.00019178,2]
[330409568,1719353444275,-1489.91,0.00019178,2]
[330409569,1719353444286,-654.6,0.00019178,2]
[330409570,1719353444297,-1167.1,0.00019178,2]
[330409571,1719353444306,-803.46,0.00019178,2]
[330409572,1719353444316,-678.38,0.00019178,2]
[330409573,1719353444327,-500.0,0.00019178,2]
[330409574,1719353444337,-500.0,0.00019178,2]
[330409575,1719353444346,-921.09,0.00019178,2]
[330409576,1719353444356,-1167.54,0.00019178,2]
[330409577,1719353444365,-862.65,0.00019178,2]
[330409578,1719353444374,-500.0,0.00019178,2]
[330409579,1719353444383,-500.0,0.00019178,2]
[330409580,1719353444393,-500.0,0.00019178,2]
[330409581,1719353444402,-500.0,0.00019178,2]
[330409582,1719353444411,-500.0,0.00019178,2]
[330409583,1719353444421,-500.0,0.00019178,2]
[330409584,1719353444431,-500.0,0.00019178,2]
[330409585,1719353444440,-831.05,0.00019178,2]
[330409586,1719353444450,-500.0,0.00019178,2]
[330409587,1719353444460,-500.0,0.00019178,2]
[330409588,1719353444469,-500.0,0.00019178,2]
[330409589,1719353444478,-500.0,0.00019178,2]
[330409590,1719353444488,-938.34,0.00019178,2]
[330409591,1719353444497,-500.0,0.00019178,2]
[330409592,1719353444507,-500.0,0.00019178,2]
[330409593,1719353444517,-500.0,0.00019178,2]
[330409594,1719353444527,-500.0,0.00019178,2]
[330409595,1719353444536,-937.75,0.00019178,2]
[330409596,1719353444546,-500.0,0.00019178,2]
[330409597,1719353444555,-500.0,0.00019178,2]
[330409598,1719353444565,-500.0,0.00019178,2]
[330409599,1719353444574,-500.0,0.00019178,2]
[330409600,1719353444584,-1145.41,0.00019178,2]
[330409601,1719353444594,-2028.09,0.00019178,2]
[330409602,1719353444603,-1097.71,0.00019178,2]